Cogmind - Beta 13 @@@ ROGUE MODE // 2024.07.03 @ 02:22:18 Player: KTG-V3 Result: Destroyed by D-53 Grenadier with Mini Grenade Launcher Performance ------------- Evolutions (0) 0 Regions Visited (4) 800 Robots Destroyed (40) 200 Value Destroyed (776) 776 Prototype IDs (0) 0 Alien Tech Used (0) 0 Bonus (35) 35 TOTAL SCORE: 1811 Bonus ------- Follower Combat Kills 35 Cogmind --------- Core Integrity 0/250 Matter 284/300 Energy 100/100 System Corruption 0% Temperature Cool (0) Movement Core (50) Location -9/Mines Parts ------- > --- POWER (1) -------- (None) > --- PROPULSION (2) --- (None) > --- UTILITY (2) ------ (None) > --- WEAPON (2) ------- (None) > --- INVENTORY (5) ---- Improved Ion Engine Heat Sink Insulated Plating High-powered Tractor Beam Rocket Launcher Peak State ------------ > --- POWER ------------ Improved Ion Engine > --- PROPULSION ------- Light Treads Light Treads > --- UTILITY ---------- Improved Heat Sink Huge Storage Unit > --- WEAPON ----------- Medium Laser Beam Cannon > --- INVENTORY -------- Improved Ion Engine Improved Ion Engine Improved Ion Engine Aluminum Leg Wheel Wheel Compact Wheel Heat Sink Heat Sink Improved Heat Sink High-capacity Matter Pod Seismic Detector Light Armor Plating Insulated Plating Hacking Suite High-powered Tractor Beam EM Pulse Gun Medium Laser Medium Laser Particle Cannon Particle Cannon Particle Cannon Particle Cannon Mining Laser Plasma Cutter [Rating: 14] Favorites ----------- Power Ion Engine Engine Ion Engine Propulsion Light Treads Treads Light Treads Leg Aluminum Leg Wheel Wheel Utility Huge Storage Unit Device Improved Heat Sink Storage Huge Storage Unit Protection Light Armor Plating Weapon Medium Laser Energy Gun Medium Laser Energy Cannon Beam Cannon Ballistic Cannon Light Cannon Special Weapon Mining Laser Build | -11 -10 -10 -10 -9 ------- Run | Yrd Mat Min Exi Min Slots Evolved . | . . . . . Power . | . . . . . Propulsion . | . . . . . Utility . | . . . . . Weapon . | . . . . . Parts Attached 40 | 7 22 5 1 5 Power 5 | 1 4 . . . Engine 5 | 1 4 . . . Core . | . . . . . Reactor . | . . . . . Propulsion 9 | 2 5 1 . 1 Treads 5 | 2 2 . . 1 Leg 3 | . 3 . . . Wheel 1 | . . 1 . . Hover . | . . . . . Flight . | . . . . . Utility 12 | 2 9 . . 1 Device 4 | 1 3 . . . Storage 3 | 1 2 . . . Processor . | . . . . . Hackware . | . . . . . Protection 5 | . 4 . . 1 Artifact . | . . . . . Weapon 14 | 2 4 4 1 3 Energy Gun 6 | 2 2 1 1 . Energy Cannon 3 | . 1 . . 2 Ballistic Gun . | . . . . . Ballistic Cannon 2 | . 1 1 . . Launcher . | . . . . . Special Weapon 3 | . . 2 . 1 Impact Weapon . | . . . . . Slashing Weapon . | . . . . . Piercing Weapon . | . . . . . Special Melee Weapon . | . . . . . Unidentified Prototypes . | . . . . . Parts Lost 3 | . 1 . . 2 Power 1 | . . . . 1 Propulsion 1 | . . . . 1 Utility . | . . . . . Weapon 1 | . 1 . . . Highest Loss Streak 2 | . 1 . . 2 To Critical Strikes . | . . . . . Average Slot Usage (%) 99 | . 98 100 100 99 Engine 13 | . 13 14 14 13 Treads 23 | . 27 20 14 14 Wheel 3 | . . 7 14 14 Device 11 | . 11 14 14 . Storage 14 | . 14 14 14 14 Protection 2 | . 2 . . 14 Energy Gun 12 | . 14 12 . 13 Energy Cannon 3 | . 2 8 . . Ballistic Cannon 9 | . 10 5 14 14 Special Weapon 1 | . . 1 14 . Naked Turns 2 | . . . . 2 Heaviest Build 97 | 15 95 93 93 97 Greatest Support 40 | 40 40 40 10 10 Greatest Overweight (x) 9 | 1 8 9 9 9 Average Overweight (x) 4 | . 1 6 9 8 Largest Inventory Capacity 25 | 8 25 25 25 25 Average Capacity 24 | 7 24 25 25 24 Most Carried 25 | 7 25 25 25 25 Average Carried 21 | 4 19 24 25 24 Final Capacity 25 | 8 25 25 25 5 Final Carried 25 | 7 23 25 25 5 Class Distribution -------------------- 100% | Mutant Dominant Class ---------------- Mutant | -10/Materials Mutant | -10/Mines Mutant | -10/Exiles Mutant | -9/Mines Resources | -11 -10 -10 -10 -9 ----------- Run | Yrd Mat Min Exi Min Matter Collected 1018 | 270 603 48 . 97 Remotely . | . . . . . Salvage Created 1084 | 150 605 276 . 53 Parts 76 | 9 44 16 . 7 Haulers Intercepted 2 | . 2 . . . Recyclers Shooed . | . . . . . Parts Field Recycled . | . . . . . Retrieved Matter . | . . . . . Parts Self-Destructed . | . . . . . Prevented . | . . . . . Kills | -11 -10 -10 -10 -9 ------- Run | Yrd Mat Min Exi Min Combat Hostiles Destroyed 26 | . 13 10 . 3 Guns 16 | . 6 8 . 2 Cannons 10 | . 7 2 . 1 Classes Destroyed 9 | 2 6 1 . . Worker 3 | . 1 1 . 1 Tunneler 4 | 2 2 . . . Hauler 2 | . 2 . . . Recycler 1 | 1 . . . . Operator 3 | . 3 . . . Watcher 3 | . 3 . . . Swarmer 9 | . 3 3 . 3 Grunt 15 | . 10 5 . . Assembled 2 | . . 2 . . Best Kill Streak 3 | 2 3 2 . 3 Combat Bots Only 3 | . 3 2 . 3 Max Kills in Single Turn 1 | 1 1 1 . 1 Gunslinging . | . . . . . Exploded . | . . . . . Melee . | . . . . . Uniques/NPCs Destroyed . | . . . . . Combat | -11 -10 -10 -10 -9 -------- Run | Yrd Mat Min Exi Min Hostile Shots Fired 117 | . 54 38 . 25 Missed 32 | . 15 13 . 4 Damage Taken 1039 | . 438 293 . 308 Core 254 | . 85 60 . 109 Absorbed by Shields . | . . . . . Core Remaining (%) 100 | 100 . . . . Volleys Fired 143 | 8 84 45 . 6 Largest 2 | 2 2 2 . 2 Hottest 110 | 90 110 110 . 103 Shots Fired 231 | 16 131 73 . 11 Gun 116 | 16 68 28 . 4 Cannon 97 | . 63 28 . 6 Launcher . | . . . . . Special 18 | . . 17 . 1 Kinetic 61 | . 47 9 . 5 Thermal 162 | 8 84 64 . 6 Explosive . | . . . . . Electromagnetic 8 | 8 . . . . Robot Hit Streak 13 | 5 9 13 . 9 Robot Miss Streak 4 | 1 4 2 . 1 Penetration Max . | . . . . . Secondary Targets . | . . . . . Shots Hit Robots 136 | 12 81 35 . 8 Core Hits 60 | 4 35 17 . 4 Critical Kills . | . . . . . Critical Parts Destroyed . | . . . . . Critical Strikes 11 | . 7 2 . 2 Burn 8 | . 4 2 . 2 Blast 3 | . 3 . . . Melee Attacks . | . . . . . Impact . | . . . . . Slashing . | . . . . . Piercing . | . . . . . Sneak Attacks . | . . . . . Combat Hostiles . | . . . . . Follow-up Attacks . | . . . . . Damage Inflicted 2072 | 179 1220 544 . 129 Guns 1073 | 179 572 283 . 39 Cannons 994 | . 643 261 . 90 Explosions . | . . . . . Melee . | . . . . . Ramming 5 | . 5 . . . Kinetic 644 | . 471 83 . 90 Thermal 1331 | 87 744 461 . 39 Explosive . | . . . . . Electromagnetic 92 | 92 . . . . Impact . | . . . . . Slashing . | . . . . . Piercing . | . . . . . Highest Corruption . | . . . . . Average Corruption . | . . . . . Corruption Purged . | . . . . . Corruption Blocked . | . . . . . Overload Shots . | . . . . . Overflow Damage 20 | . 18 . . 2 Projectiles 20 | . 18 . . 2 Explosions . | . . . . . Melee . | . . . . . Knockbacks 11 | . 10 . . 1 Impact . | . . . . . Kinetic 10 | . 9 . . 1 Secondary 1 | . 1 . . . Self-Inflicted Damage . | . . . . . Shots . | . . . . . Rammed 1 | . 1 . . . Targets Rammed 1 | . 1 . . . Kicked . | . . . . . Crushed . | . . . . . Highest Temperature 300 | 90 300 99 . 108 Average Temperature 60 | 37 72 32 . 39 Received Heat Transfer 321 | . 207 114 . . Effects 1 | . 1 . . . Energy Bleed 1 | . 1 . . . Siege Activations . | . . . . . Robots Corrupted . | . . . . . Combat Hostiles . | . . . . . Parts Fried 1 | 1 . . . . Impact Corruptions . | . . . . . Robots Melted 1 | . 1 . . . Combat Hostiles . | . . . . . Parts Melted 5 | . 3 2 . . Heat Transferred 4218 | 259 2368 1332 . 259 Parts Sabotaged . | . . . . . Parts Stolen . | . . . . . Parts Stripped . | . . . . . Power Chain Reactions . | . . . . . Alert | -11 -10 -10 -10 -9 ------- Run | Yrd Mat Min Exi Min Peak Influence 182 | 15 182 110 . 100 Initial 65 | . 9 65 . . Average 52 | 6 54 44 . 82 Maximum Alert Level . | . . . . . Low Security (%) 100 | 100 100 100 . 100 Level 1 . | . . . . . Level 2 . | . . . . . Level 3 . | . . . . . Level 4 . | . . . . . Level 5 . | . . . . . High Security . | . . . . . Max Security . | . . . . . Squads Dispatched 5 | . 4 1 . . Investigation 2 | . 1 1 . . Extermination . | . . . . . Reinforcement 3 | . 3 . . . Assault . | . . . . . Garrison . | . . . . . Intercept . | . . . . . Searches Triggered . | . . . . . Construction Impeded . | . . . . . Haulers Reinforced . | . . . . . Active Scanning Responses . | . . . . . Cargo Convoy Interrupts . | . . . . . Stealth | -11 -10 -10 -10 -9 --------- Run | Yrd Mat Min Exi Min Distress Signals 2 | . 1 1 . . Communications Jammed . | . . . . . Distress Signals . | . . . . . Times Spotted 54 | . 27 15 . 12 Peak Tracking Total 6 | . 3 3 . 6 Tactical Retreats 5 | . 2 3 . . Traps | -11 -10 -10 -10 -9 ------- Run | Yrd Mat Min Exi Min Traps Triggered 2 | . 2 . . . Indirectly . | . . . . . Trap Hack Attempts . | . . . . . Triggered . | . . . . . Disarmed . | . . . . . Reprogrammed . | . . . . . Reused . | . . . . . Traps Extracted . | . . . . . Installed . | . . . . . Triggered 1 | . . . . 1 Machines | -11 -10 -10 -10 -9 ---------- Run | Yrd Mat Min Exi Min Machines Disabled . | . . . . . Max in Single Turn . | . . . . . Machines Repaired . | . . . . . Machines Dismantled . | . . . . . Machines Sabotaged . | . . . . . Overloaded Fab Kills . | . . . . . Hacking | -11 -10 -10 -10 -9 --------- Run | Yrd Mat Min Exi Min Machines Accessed 9 | . 7 1 . 1 Terminals 6 | . 5 . . 1 Fabricators . | . . . . . Repair Stations . | . . . . . Recycling Units 2 | . 2 . . . Scanalyzers . | . . . . . Garrison Access . | . . . . . Total Hacks 23 | . 21 1 . 1 Successful 10 | . 8 1 . 1 Failed 13 | . 13 . . . Catastrophic 3 | . 3 . . . Database Lockouts . | . . . . . Manual 8 | . 8 . . . Terminals 17 | . 16 . . 1 Fabricators . | . . . . . Repair Stations . | . . . . . Recycling Units 5 | . 5 . . . Scanalyzers . | . . . . . Garrison Access . | . . . . . Terminal Hacks 7 | . 5 1 . 1 Part Schematic 1 | . 1 . . . Robot Analysis 1 | . 1 . . . Open Door 1 | . . 1 . . Locate Traps 3 | . 3 . . . Zone Layout 1 | . . . . 1 Fabricator Hacks . | . . . . . Repair Station Hacks . | . . . . . Recycling Unit Hacks 2 | . 2 . . . Retrieve Components 2 | . 2 . . . Scanalyzer . | . . . . . Garrison Access Hacks . | . . . . . Unauthorized Hacks 1 | . 1 . . . Terminals 1 | . 1 . . . Botnet 1 | . 1 . . . Fabricators . | . . . . . Repair Stations . | . . . . . Recycling Units . | . . . . . Scanalyzers . | . . . . . Garrison Access . | . . . . . Data Cores Recovered . | . . . . . Used . | . . . . . Hacking Detections 7 | . 7 . . . Full Trace Events 2 | . 2 . . . Feedback Events . | . . . . . Feedback Blocked . | . . . . . Robot Schematics Acquired . | . . . . . Robots Built . | . . . . . Authchips . | . . . . . Time . | . . . . . Total Robot Build Rating . | . . . . . Part Schematics Acquired 1 | . 1 . . . Parts Built . | . . . . . Authchips . | . . . . . Time . | . . . . . Total Part Build Rating . | . . . . . Parts Repaired . | . . . . . Time . | . . . . . Parts Recycled . | . . . . . Recycled Matter . | . . . . . Retrieved Matter . | . . . . . Retrieved Components 5 | . 5 . . . Parts Scanalyzed . | . . . . . Part Schematics Acquired . | . . . . . Parts Damaged . | . . . . . Bothacking | -11 -10 -10 -10 -9 ------------ Run | Yrd Mat Min Exi Min Used RIF Installer . | . . . . . Robots Hacked . | . . . . . Non-combat . | . . . . . Combat . | . . . . . Robot Hacks Applied . | . . . . . Relay Couplers Released . | . . . . . Fabnet Peak Effective % . | . . . . . Robots Rewired . | . . . . . Allies Hacked . | . . . . . Hacks Repelled . | . . . . . Allies | -11 -10 -10 -10 -9 -------- Run | Yrd Mat Min Exi Min Total Allies 2 | . . 2 . . Largest Group 2 | . . 2 . . Highest-Rated Group 40 | . . 40 . . Highest-Rated Ally 31 | . . 31 . . Total Orders . | . . . . . Ally Attacks 7 | . . 7 . . Total Damage 124 | . . 124 . . Kills 1 | . . 1 . . Allies Corrupted . | . . . . . Allies Melted . | . . . . . Intel | -11 -10 -10 -10 -9 ------- Run | Yrd Mat Min Exi Min Robot Analysis Total 1 | . 1 . . . Derelict Logs Recovered 3 | . . 2 . 1 Drone Launches . | . . . . . Drone Recoveries . | . . . . . Exploration | -11 -10 -10 -10 -9 ------------- Run | Yrd Mat Min Exi Min Turns Passed 7461 | 167 4341 1830 658 465 Spaces Moved 2200 | 68 991 633 306 202 Core 11 | 8 . . . 3 Treads 1285 | 60 985 240 . . Legs 6 | . 6 . . . Wheels 898 | . . 393 306 199 Hover . | . . . . . Flight . | . . . . . Fastest Speed 50 | 50 160 215 215 50 Average Speed 270 | 149 318 254 215 212 Slowest Speed 680 | 160 680 320 215 215 Overloaded Moves . | . . . . . Propulsion Burnouts . | . . . . . Robots Hopped . | . . . . . Cave-ins Triggered . | . . . . . Exploration Rate (%) 67 | 7 94 99 82 53 Regions Visited 4 Branch Regions 3 Pre-discovered Areas 2 | . . 2 . . Known Exits Taken . | . . . . . Unknown Exits Taken 4 | 1 1 1 1 . Scrap Searched 2 | . . 1 . 1 Spaces Dug 1 | . . . . 1 Terrain Destroyed 2 | . . 1 . 1 Melee . | . . . . . Projectile 2 | . . 1 . 1 AOE . | . . . . . Terrain Rammed . | . . . . . Walls Destroyed . | . . . . . Machines Disabled . | . . . . . Actions | -11 -10 -10 -10 -9 --------- Run | Yrd Mat Min Exi Min Total 3429 | 114 2043 743 306 223 Wait 999 | 25 911 55 . 8 Move 2196 | 67 990 632 305 202 Hop . | . . . . . Pick Up 37 | 7 25 4 . 1 Fast Attach 10 | 7 3 . . . Attach 7 | . 4 1 . 2 Detach . | . . . . . Swap 23 | . 15 4 1 3 Drop 13 | . 10 2 . 1 Fire 143 | 8 84 45 . 6 Melee . | . . . . . Ram . | . . . . . Kick . | . . . . . Crush 1 | . 1 . . . Escape Stasis . | . . . . . Rewire . | . . . . . Trap . | . . . . . Miscellaneous . | . . . . . Route ------- -11/Scrapyard -10/Materials (discovered 6 exits: [*Mat x3] / *Min x2 / [*Sub]) -10/Mines (discovered 4 exits: [*Mat x2] / [*Exi] / [*Sub]) -10/Exiles (discovered 2 exits: *Min x2) -9/Mines (discovered 2 exits: [*Mat x2]) History --------- Turn | Location | Event 3 | -11/Scrapyard | Discovered new exit (range 15) 168 | -11/Scrapyard | Entered Materials 316 | -10/Materials | Build established: Mutant 822 | -10/Materials | Discovered new exit (range 7) 981 | -10/Materials | Discovered new exit (range 8) 1295 | -10/Materials | Discovered new exit (range 9) 2445 | -10/Materials | Discovered new exit (range 6) 3304 | -10/Materials | Discovered new exit (range 16) 4278 | -10/Materials | Discovered new exit (range 11) 4509 | -10/Materials | Entered Mines 4510 | -10/Mines | Learned location of Storage (-7) 4698 | -10/Mines | Learned location of Zion (-7) 5083 | -10/Mines | Met a Derelict shopkeep closing up shop 5454 | -10/Mines | Discovered new exit (range 12) 5533 | -10/Mines | Discovered new exit (range 10) 5913 | -10/Mines | Core integrity fell below 50% 5934 | -10/Mines | Discovered new exit (range 7) 5977 | -10/Mines | Learned Materials security intel 6100 | -10/Mines | Excavation squad dispatched 6100 | -10/Mines | A large section of the Mines collapsed 6331 | -10/Mines | Deemed a non-threat by the Exiles lab entrance 6331 | -10/Mines | Discovered new exit (range 5) 6339 | -10/Mines | Entered Exiles 6380 | -10/Exiles | Discovered new exit (range 15) 6421 | -10/Exiles | Met 8R-AWN 6456 | -10/Exiles | Met EX-HEX 6522 | -10/Exiles | Met EX-BIN 6593 | -10/Exiles | Met EX-DEC 6700 | -10/Exiles | Visited The Gauntlet 6967 | -10/Exiles | Discovered new exit (range 14) 6997 | -10/Exiles | Entered Mines 7032 | -9/Mines | Learned 8 Materials zone layouts 7111 | -9/Mines | Discovered new exit (range 13) 7277 | -9/Mines | Discovered new exit (range 10) 7425 | -9/Mines | Received a Rocket Launcher from a helpful Derelict 7435 | -9/Mines | Assembled infested the area 7460 | -9/Mines | Released all parts (6) 7461 | -9/Mines | Core integrity fell below 20% 7462 | -9/Mines | Destroyed by D-53 Grenadier with Mini Grenade Launcher Last Messages --------------- 07430_ Dropped Med. Laser. 07431_ Acquired Rocket Launcher. 07435_ ALERT: Infestation in the mines, dispatching Demolisher response squad. 07444_ Acquired 4 matter. 07449_ Acquired 16 matter. 07454_ Lgt. Treads destroyed. 07456_ Acquired 3 matter. 07457_ as-65897 knocked back. 07458_ Imp. Ion Engine destroyed. 07460_ C-30 ARC bursts open, deploying its payload. 07460_ D-53 Grenadier unfolds itself. 07460_ as-65897 destroyed. 07460_ as-36709 destroyed. 07460_ Released Lgt. Treads. 07460_ Released Lgt. Cannon. 07460_ Released Huge Storage Unit. 07460_ Released Wheel. 07460_ Released Lgt. Armor Plating. 07460_ Released Particle Cannon. Map ----- +----------------------------------------------------+ | ?????## ???????????????????? | | ????## ??????????????????? | | ????# ## ###### ???????????????????? | | ????# ### #???????????????????????????? | | ????# # < #### #???????????????????????????? | | ????### ##### #???????????????????????????? | | ??????# #??# #??????????????????????????? | | ??????# #?## ??????????????????????????? | | ??????# ### ##????????????????????????? | | ??????# ## #????????????????????????? | | ?????## ## ##???????????????????????? | | ????## ### #???????????????????????? | | ????# #?# #???????????????????????? | | ????# #### ##???????????????????????? | | ????# ######## ########?????????????????? | | ????# #?????# #????????????? | | ????# ####### ########?????????????????? | | ????## #????????????????????????? | | ?????## ###### ###????????????????????????? | | ??????#####????# #??????????????????????????? | | ???????????????# #??????????????????????????? | | ???????????????# #??????????????????????????? | | ???????????????# #####??????????????????????? | | ???????????????# ####???????????????????? | | ???????????????##### # ##??????????????????? | | ??????????????????##@[] #??????????????????? | | ??????????????????# =d!|# """ ?????????????? | | ??????????????????# ]=d!] """ ?????????????? | | ??????????????????# !!= # ?????????? | | ??????????????????# !| [ #?? a aa ?????????? | | ??????????????????# [!##??? #####????????? | | ??????????????????### =a ##????????????????? | | ????????????????????# ]%[ #????????????????? | | ????????????????????## ?????????? | | ?????????????????????## #####????????? | | ??????????????????????## ######????????????? | | ???????????????????????####?????????????????? | | ????????????????????????????????????????????? | | ????????????????????????????????????????????? | | ????????????????????????????????????????????? | | ????????????????????????????????????????????? | | ????????????????????????????????????????????? | | ????????????????????????????????????????????? | | ????????????????????????????????????????????? | | ????????????????????????????????????????????? | | ????????????????????????????????????????????? | | ????????????????????????????????????????????? | | ????????????????????????????????????????????? | | | | | +----------------------------------------------------+ Best States ------------- Heat Dissipation 39 Energy Generation 12 Energy Capacity 265 Matter Stores 300 Matter Capacity 300 Sight Range 16 Terrain Scan Density 10 Armor Coverage 150 Evasion (%) 40 Recoil Reduction 2 Item Schematics ----------------- Huge Storage Unit | -10/Materials | Hacked Robot Schematics ------------------ None Fabricated ------------ Nothing Alien Tech Used ----------------- None Achievements -------------- None Challenges ------------ None Game ------ Seed HardlightAlertDisintegrator Manual? 0 Play Time 00:21:08 Cumulative 158.3 hours Start 2024.07.03 @ 01:45:04 End 2024.07.03 @ 02:22:18 Sessions 3 Manual Loads 0 Difficulty Rogue Special Mode None Game No. 35 Rogue 34 Adventurer 1 Explorer 0 Win Type - Total 12 Types 3/2/4/0/0/0/3/0/0 Lore% 54 Gallery% 73 Achievement% 66 Wizard Run 0 Options --------- Layout 0 ASCII 0 Keyboard 0 Movement Mouse Keybinds 0 Fullscreen 1 Font 18/Terminus Map View 76x50 Zoom Use 0% Tactical HUD 1 Map Filters NONE Filters NONE Steam 0 RUN: 5631aa69-b3fe-4ab9-b02a-aa02458fc328